fUSD/lending_fUSD_20240121
["ID","MTS","AMOUNT","RATE_DAILY","PERIOD"]
[312399006,1705858319951,-500.0,0.00042739,31]
[312399007,1705858319960,-500.0,0.00042739,31]
[312399008,1705858319970,-500.0,0.00042739,31]
[312399009,1705858319979,-500.0,0.00042739,31]
[312399010,1705858319989,-612.53,0.00042739,31]
[312399011,1705858319999,-559.97,0.00042739,31]
[312399012,1705858320009,-562.5,0.00042739,31]
[312399013,1705858320018,-583.04,0.00042739,31]
[312399014,1705858320028,-550.240533,0.00042739,31]
[312399015,1705858320038,-500.0,0.00042739,31]
[312399016,1705858320048,-578.47,0.00042739,31]
[312399017,1705858320059,-500.0,0.00042739,31]
[312399018,1705858320074,-692.97,0.00042739,31]
[312399019,1705858320084,-510.80986959,0.00042739,31]
[312399020,1705858320094,-500.0,0.00042739,31]
[312399021,1705858320104,-500.0,0.00042739,31]
[312399022,1705858320115,-794.24,0.00042739,31]
[312399023,1705858320124,-500.0,0.00042739,31]
[312399024,1705858320135,-500.0,0.00042739,31]
[312399025,1705858320145,-573.24,0.00042739,31]
[312399026,1705858320155,-500.0,0.00042739,31]
[312399027,1705858320166,-707.04,0.00042739,31]
[312399028,1705858320175,-500.0,0.00042739,31]
[312399029,1705858320185,-500.0,0.00042739,31]
[312399030,1705858320195,-511.2851664,0.00042739,31]
[312399031,1705858320205,-500.0,0.00042739,31]
[312399032,1705858320216,-500.0,0.00042739,31]
[312399033,1705858320226,-500.0,0.00042739,31]
[312399034,1705858320236,-500.0,0.00042739,31]
[312399035,1705858320246,-500.0,0.00042739,31]
[312399036,1705858320256,-500.0,0.00042739,31]
[312399037,1705858320265,-607.75,0.00042739,30]
[312399038,1705858320275,-500.0,0.00042739,31]
[312399039,1705858320285,-563.5,0.00042739,31]
[312399040,1705858320294,-630.01,0.00042739,31]
[312399041,1705858320304,-173.30808815,0.00042739,31]
[312399042,1705858320314,-500.0,0.00042739,31]
[312399043,1705858320323,-500.0,0.00042739,31]
[312399044,1705858320333,-500.0,0.00042739,31]
[312399045,1705858320343,-610.32719957,0.00042739,31]
[312399046,1705858320353,-718.93,0.00042739,31]
[312399047,1705858320363,-500.0,0.00042739,31]
[312399048,1705858320372,-500.0,0.00042739,31]
[312399049,1705858320381,-500.0,0.00042739,31]
[312399050,1705858320391,-500.0,0.00042739,31]
[312399051,1705858320400,-713.35,0.00042739,31]
[312399052,1705858320410,-500.0,0.00042739,31]
[312399053,1705858320419,-508.67578463,0.00042739,30]
[312399054,1705858320429,-500.0,0.00042739,31]
[312399055,1705858320440,-500.0,0.00042739,31]
[312399056,1705858320449,-500.0,0.00042739,31]
[312399057,1705858320459,-500.0,0.00042739,31]
[312399058,1705858320468,-500.0,0.00042739,7]
[312399059,1705858320478,-500.0,0.00042739,31]
[312399060,1705858320487,-500.0,0.00042739,31]
[312399061,1705858320497,-500.0,0.00042739,31]
[312399062,1705858320508,-500.0,0.00042739,31]
[312399063,1705858320518,-500.0,0.00042739,31]
[312399064,1705858320528,-605.12,0.00042739,31]
[312399065,1705858320537,-507.01976207,0.00042739,31]
[312399066,1705858320547,-646.43226781,0.00042739,31]
[312399067,1705858320556,-500.0,0.00042739,31]
[312399068,1705858320566,-500.0,0.00042739,31]
[312399069,1705858320575,-500.0,0.00042739,31]
[312399070,1705858320585,-500.0,0.00042739,31]
[312399071,1705858320594,-500.0,0.00042739,31]
[312399072,1705858320603,-500.0,0.00042739,31]
[312399073,1705858320613,-500.0,0.00042739,31]
[312399074,1705858320622,-500.0,0.00042739,31]
[312399075,1705858320631,-500.0,0.00042739,31]
[312399076,1705858320641,-542.52,0.00042739,31]
[312399077,1705858320650,-500.0,0.00042739,31]
[312399078,1705858320659,-500.0,0.00042739,31]
[312399079,1705858320669,-500.0,0.00042739,31]
[312399080,1705858320678,-781.08,0.00042739,31]
[312399081,1705858320688,-1000.0,0.00042739,7]
[312399082,1705858320698,-500.0,0.00042739,31]
[312399083,1705858320709,-500.0,0.00042739,31]
[312399084,1705858320718,-500.0,0.00042739,31]
[312399085,1705858320727,-521.49,0.00042739,31]
[312399086,1705858320737,-500.0,0.00042739,31]
[312399087,1705858320746,-671.59,0.00042739,31]
[312399088,1705858320756,-518.55,0.00042739,31]
[312399089,1705858320765,-500.0,0.00042739,31]
[312399090,1705858320775,-500.0,0.00042739,31]
[312399091,1705858320784,-500.0,0.00042739,31]
[312399092,1705858320793,-500.0,0.00042739,31]
[312399093,1705858320802,-576.57,0.00042739,31]
[312399094,1705858320812,-233.44809038,0.00042739,31]
[312399095,1705858320821,-515.6557835,0.00042739,31]
[312399096,1705858320830,-639.66,0.00042739,31]
[312399097,1705858320839,-503.61523896,0.00042739,31]
[312399098,1705858320849,-500.0,0.00042739,31]
[312399099,1705858320859,-613.74633298,0.00042739,31]
[312399100,1705858320868,-500.0,0.00042739,31]
[312399101,1705858320877,-500.0,0.00042739,31]
[312399102,1705858320887,-500.0,0.00042739,31]
[312399103,1705858320896,-500.0,0.00042739,31]
[312399104,1705858320906,-500.0,0.00042739,31]
[312399105,1705858320915,-500.0,0.00042739,31]
[312399106,1705858320924,-500.0,0.00042739,31]
[312399107,1705858320934,-500.0,0.00042739,31]
[312399108,1705858320944,-500.0,0.00042739,31]
[312399109,1705858320953,-500.0,0.00042739,31]
[312399110,1705858320963,-500.0,0.00042739,31]
[312399111,1705858320972,-562.47420824,0.00042739,31]
[312399112,1705858320982,-500.0,0.00042739,31]
[312399113,1705858320992,-500.0,0.00042739,31]
[312399114,1705858321002,-665.96,0.00042739,31]
[312399115,1705858321012,-606.4,0.00042739,31]
[312399116,1705858321022,-500.0,0.00042739,31]
[312399117,1705858321032,-500.0,0.00042739,31]
[312399118,1705858321042,-500.0,0.00042739,31]
[312399119,1705858321052,-500.0,0.00042739,31]
[312399120,1705858321062,-500.0,0.00042739,31]
[312399121,1705858321071,-538.46445731,0.00042739,31]
[312399122,1705858321080,-500.0,0.00042739,31]
[312399123,1705858321093,-500.0,0.00042739,31]
[312399124,1705858321102,-610.64,0.00042739,31]
[312399125,1705858321112,-500.0,0.00042739,31]
[312399126,1705858321121,-500.0,0.00042739,31]
[312399127,1705858321132,-500.0,0.00042739,31]
[312399128,1705858321142,-619.69,0.00042739,31]
[312399129,1705858321152,-556.51,0.00042739,31]
[312399130,1705858321161,-1402.46,0.00042739,31]
[312399131,1705858321173,-500.0,0.00042739,31]
[312399132,1705858321184,-500.0,0.00042739,31]
[312399133,1705858321194,-804.15,0.00042739,31]
[312399134,1705858321204,-500.0,0.00042739,31]
[312399135,1705858321214,-500.0,0.00042739,31]
[312399136,1705858321223,-500.0,0.00042739,31]
[312399137,1705858321233,-500.0,0.00042739,31]
[312399138,1705858321242,-500.0,0.00042739,31]
[312399139,1705858321252,-500.0,0.00042739,31]
[312399140,1705858321262,-500.0,0.00042739,31]
[312399141,1705858321272,-500.0,0.00042739,31]
[312399142,1705858321281,-500.0,0.00042739,31]
[312399143,1705858321291,-500.0,0.00042739,31]
[312399144,1705858321301,-500.0,0.00042739,31]
[312399145,1705858321310,-368.42473948,0.00042739,31]
[312399146,1705858321320,-500.0,0.00042739,31]
[312399147,1705858321329,-500.0,0.00042739,31]
[312399148,1705858321338,-500.0,0.00042739,31]
[312399149,1705858321347,-500.0,0.00042739,31]
[312399150,1705858321357,-500.0,0.00042739,31]
[312399151,1705858321475,-500.0,0.00042739,31]
[312399152,1705858321485,-500.0,0.00042739,31]
[312399153,1705858321494,-500.0,0.00042739,31]
[312399154,1705858321504,-500.0,0.00042739,31]
[312399155,1705858321513,-500.0,0.00042739,31]
[312399156,1705858321523,-509.73,0.00042739,31]
[312399157,1705858321532,-500.0,0.00042739,31]
[312399158,1705858321541,-637.31,0.00042739,31]
[312399159,1705858321551,-500.0,0.00042739,31]
[312399160,1705858321561,-819.1,0.00042739,31]
[312399161,1705858321570,-500.0,0.00042739,31]
[312399162,1705858321579,-500.0,0.00042739,31]
[312399163,1705858321587,-854.66,0.00042739,31]
[312399164,1705858321597,-605.66467998,0.00042739,31]
[312399165,1705858321606,-500.0,0.00042739,31]
[312399166,1705858321615,-438.3085234,0.00042739,31]
[312399167,1705858321623,-668.54,0.00042739,31]
[312399168,1705858321633,-500.0,0.00042739,31]
[312399169,1705858321642,-500.0,0.00042739,31]
[312399170,1705858321652,-207.74300886,0.00042739,31]
[312399171,1705858321661,-500.0,0.00042739,31]
[312399172,1705858321673,-500.0,0.00042739,31]
[312399173,1705858321683,-500.0,0.00042739,31]
[312399174,1705858321692,-761.55,0.00042739,31]
[312399175,1705858321701,-524.62,0.00042739,31]
[312399176,1705858321711,-500.0,0.00042739,31]
[312399177,1705858321721,-667.4,0.00042739,31]
[312399178,1705858321730,-500.0,0.00042739,31]
[312399179,1705858321739,-500.0,0.00042739,31]
[312399180,1705858321748,-881.65,0.00042739,31]
[312399181,1705858321757,-519.32,0.00042739,31]
[312399182,1705858321766,-500.0,0.00042739,31]
[312399183,1705858321775,-514.45,0.00042739,31]
[312399184,1705858321784,-500.0,0.00042739,31]
[312399185,1705858321793,-500.0,0.00042739,31]
[312399186,1705858321802,-663.24,0.00042739,31]
[312399187,1705858321811,-500.0,0.00042739,31]
[312399188,1705858321820,-490.31178831,0.00042739,31]
[312399189,1705858321829,-500.0,0.00042739,31]
[312399190,1705858321838,-500.0,0.00042739,31]
[312399191,1705858321847,-500.0,0.00042739,31]
[312399192,1705858321856,-500.0,0.00042739,31]
[312399193,1705858321865,-500.0,0.00042739,31]
[312399194,1705858321874,-667.18,0.00042739,31]
[312399195,1705858321883,-500.0,0.00042739,31]
[312399196,1705858321892,-500.0,0.00042739,31]
[312399197,1705858321902,-585.56,0.00042739,31]
[312399198,1705858321911,-628.26,0.00042739,31]
[312399199,1705858321920,-500.0,0.00042739,31]
[312399200,1705858321929,-500.0,0.00042739,31]
[312399201,1705858321938,-500.0,0.00042739,31]
[312399202,1705858321947,-500.0,0.00042739,31]
[312399203,1705858321956,-500.0,0.00042739,31]
[312399204,1705858321966,-500.0,0.00042739,31]
[312399205,1705858321975,-500.0,0.00042739,31]
[312399206,1705858321984,-500.0,0.00042739,31]
[312399207,1705858321993,-500.0,0.00042739,31]
[312399208,1705858322002,-520.53146739,0.00042739,31]
[312399209,1705858322011,-509.39453767,0.00042739,31]
[312399210,1705858322021,-1000.0,0.00042739,7]
[312399211,1705858322031,-500.0,0.00042739,31]
[312399212,1705858322041,-771.66,0.00042739,31]
[312399213,1705858322051,-659.58,0.00042739,31]
[312399214,1705858322061,-601.64,0.00042739,15]
[312399215,1705858322073,-927.1,0.00042739,31]
[312399216,1705858322083,-752.58,0.00042739,31]
[312399217,1705858322092,-500.0,0.00042739,31]
[312399218,1705858322102,-586.48,0.00042739,31]
[312399219,1705858322112,-500.0,0.00042739,31]
[312399220,1705858322121,-500.0,0.00042739,31]
[312399221,1705858322130,-500.0,0.00042739,31]
[312399222,1705858322140,-500.0,0.00042739,31]
[312399223,1705858322152,-500.0,0.00042739,31]
[312399224,1705858322162,-500.0,0.00042739,31]
[312399225,1705858322171,-500.0,0.00042739,31]
[312399226,1705858322180,-500.0,0.00042739,31]
[312399227,1705858322190,-659.42,0.00042739,31]
[312399228,1705858322199,-500.0,0.00042739,31]
[312399229,1705858322209,-500.0,0.00042739,31]
[312399230,1705858322222,-500.0,0.00042739,31]
[312399231,1705858322231,-589.3,0.00042739,31]
[312399232,1705858322240,-500.0,0.00042739,31]
[312399233,1705858322250,-500.0,0.00042739,31]
[312399234,1705858322259,-500.0,0.00042739,31]
[312399235,1705858322268,-500.0,0.00042739,31]
[312399236,1705858322277,-500.0,0.00042739,31]
[312399237,1705858322286,-632.61916881,0.00042739,31]
[312399238,1705858322295,-500.0,0.00042739,31]
[312399239,1705858322305,-500.0,0.00042739,31]
[312399240,1705858322314,-503.42559892,0.00042739,31]
[312399241,1705858322323,-547.34,0.00042739,31]
[312399242,1705858322334,-500.0,0.00042739,31]
[312399243,1705858322343,-627.71,0.00042739,31]
[312399244,1705858322353,-500.0,0.00042739,31]
[312399245,1705858322362,-500.0,0.00042739,31]
[312399246,1705858322371,-500.0,0.00042739,31]
[312399247,1705858322380,-500.0,0.00042739,31]
[312399248,1705858322389,-500.0,0.00042739,31]
[312399249,1705858322398,-500.0,0.00042739,31]
[312399250,1705858322408,-904.01,0.00042739,31]
[312399251,1705858322417,-500.0,0.00042739,31]
[312399252,1705858322427,-500.0,0.00042739,31]
[312399253,1705858322436,-500.0,0.00042739,31]
[312399254,1705858322445,-500.0,0.00042739,31]
[312399255,1705858322455,-500.0,0.00042739,31]
[312399256,1705858322465,-744.5,0.00042739,31]
[312399257,1705858322475,-528.38,0.00042739,31]
[312399258,1705858322484,-500.0,0.00042739,31]
[312399259,1705858322494,-500.0,0.00042739,31]
[312399260,1705858322504,-541.26,0.00042739,31]
[312399261,1705858322513,-500.0,0.00042739,31]
[312399262,1705858322522,-500.0,0.00042739,31]
[312399263,1705858322531,-616.68,0.00042739,31]
[312399264,1705858322541,-500.0,0.00042739,31]
[312399265,1705858322550,-589.25,0.00042739,31]
[312399266,1705858322560,-500.00105705,0.00042739,31]
[312399267,1705858322569,-681.77,0.00042739,31]
[312399268,1705858322579,-500.0,0.00042739,31]
[312399269,1705858322588,-500.0,0.00042739,31]
[312399270,1705858322598,-500.0,0.00042739,31]
[312399271,1705858322607,-500.0,0.00042739,31]
[312399272,1705858322617,-336.86,0.00042739,31]
[312399273,1705858322627,-500.0,0.00042739,31]
[312399274,1705858322637,-733.26,0.00042739,31]
[312399275,1705858322647,-689.41,0.00042739,31]
[312399276,1705858322657,-516.09,0.00042739,31]
[312399277,1705858322666,-521.72,0.00042739,31]
[312399278,1705858322676,-648.59,0.00042739,31]
[312399279,1705858322685,-500.0,0.00042739,31]
[312399280,1705858322695,-500.0,0.00042739,31]
[312399281,1705858322704,-1334.82,0.00042739,31]
[312399282,1705858322714,-300.0,0.00042739,31]
[312399283,1705858322723,-500.0,0.00042739,31]
[312399284,1705858322732,-500.0,0.00042739,31]
[312399285,1705858322742,-513.21683743,0.00042739,31]
[312399286,1705858322751,-500.0,0.00042739,2]
[312399287,1705858322761,-494.6,0.00042739,31]
[312399288,1705858322770,-543.26,0.00042739,31]
[312399289,1705858322779,-558.46,0.00042739,31]
[312399290,1705858322788,-646.48911709,0.00042739,31]
[312399291,1705858322798,-1416.38,0.00042739,2]
[312399292,1705858322807,-500.0,0.00042739,31]
[312399293,1705858322816,-647.92125253,0.00042739,31]
[312399294,1705858322826,-772.93,0.00042739,31]
[312399295,1705858322836,-537.8,0.00042739,31]
[312399296,1705858322845,-500.0,0.00042739,31]
[312399297,1705858322855,-646.27,0.00042739,31]
[312399298,1705858322864,-1451.51,0.00042739,31]
[312399299,1705858322874,-500.0,0.00042739,31]
[312399300,1705858322884,-500.0,0.00042739,31]
[312399301,1705858322893,-500.0,0.00042739,31]
[312399302,1705858322907,-1000.0,0.00042739,50]
[312399303,1705858322917,-618.07,0.00042739,31]
[312399304,1705858322927,-500.0,0.00042739,31]
[312399305,1705858322937,-582.85989801,0.00042739,31]
[312399306,1705858322947,-684.61,0.00042739,31]
[312399307,1705858322957,-692.68,0.00042739,31]
[312399308,1705858322968,-504.70297734,0.00042739,31]
[312399309,1705858322978,-500.0,0.00042739,31]
[312399310,1705858322988,-833.11,0.00042739,31]
[312399311,1705858322997,-500.0,0.00042739,31]
[312399312,1705858323006,-500.0,0.00042739,31]
[312399313,1705858323015,-765.98,0.00042739,31]
[312399314,1705858323025,-635.0,0.00042739,31]
[312399315,1705858323035,-500.0,0.00042739,31]
[312399316,1705858323044,-569.6,0.00042739,31]
[312399317,1705858323053,-526.62178041,0.00042739,31]
[312399318,1705858323063,-511.15564755,0.00042739,31]
[312399319,1705858323073,-997.4,0.00042739,31]
[312399320,1705858323083,-500.0,0.00042739,31]
[312399321,1705858323095,-500.0,0.00042739,31]
[312399322,1705858323104,-500.0,0.00042739,31]
[312399323,1705858323114,-500.0,0.00042739,31]
[312399324,1705858323124,-796.16,0.00042739,31]
[312399325,1705858323134,-500.0,0.00042739,31]
[312399326,1705858323144,-500.0,0.00042739,31]
[312399327,1705858323154,-562.29,0.00042739,31]
[312399328,1705858323164,-530.76,0.00042739,31]
[312399329,1705858323174,-500.0,0.00042739,31]
[312399330,1705858323184,-500.0,0.00042739,31]
[312399331,1705858323193,-869.35,0.00042739,31]
[312399332,1705858323203,-500.0,0.00042739,31]
[312399333,1705858323213,-500.0,0.00042739,31]
[312399334,1705858323223,-500.0,0.00042739,31]
[312399335,1705858323232,-500.0,0.00042739,31]
[312399336,1705858323242,-532.62,0.00042739,31]
[312399337,1705858323251,-500.0,0.00042739,31]
[312399338,1705858323261,-796.99,0.00042739,31]
[312399339,1705858323271,-1317.0,0.00042739,31]
[312399340,1705858323280,-506.32194238,0.00042739,31]
[312399341,1705858323290,-500.0,0.00042739,31]
[312399342,1705858323299,-500.0,0.00042739,31]
[312399343,1705858323309,-559.68,0.00042739,31]
[312399344,1705858323318,-662.26,0.00042739,31]
[312399345,1705858323328,-500.0,0.00042739,31]
[312399346,1705858323338,-500.0,0.00042739,31]
[312399347,1705858323347,-500.0,0.00042739,31]
[312399348,1705858323356,-500.0,0.00042739,31]
[312399349,1705858323366,-500.0,0.00042739,31]
[312399350,1705858323375,-500.0,0.00042739,31]
[312399351,1705858323385,-737.04,0.00042739,31]
[312399352,1705858323394,-670.12,0.00042739,31]
[312399353,1705858323404,-843.71,0.00042739,31]
[312399354,1705858323413,-500.0,0.00042739,31]
[312399355,1705858323423,-500.0,0.00042739,31]
[312399356,1705858323432,-897.27,0.00042739,31]
[312399357,1705858323442,-500.0,0.00042739,31]
[312399358,1705858323451,-500.0,0.00042739,31]
[312399359,1705858323461,-500.0,0.00042739,31]
[312399360,1705858323470,-1007.44,0.00042739,31]
[312399361,1705858323480,-500.0,0.00042739,31]
[312399362,1705858323489,-500.0,0.00042739,31]
[312399363,1705858323498,-500.0,0.00042739,31]
[312399364,1705858323510,-500.0,0.00042739,31]
[312399365,1705858323519,-500.0,0.00042739,31]
[312399366,1705858323529,-500.0,0.00042739,31]
[312399367,1705858323539,-500.0,0.00042739,31]
[312399368,1705858323549,-748.65,0.00042739,31]
[312399369,1705858323559,-500.0,0.00042739,31]
[312399370,1705858323570,-274.51373951,0.00042739,31]
[312399371,1705858323580,-500.0,0.00042739,31]
[312399372,1705858323591,-500.0,0.00042739,60]
[312399373,1705858323601,-500.0,0.00042739,31]
[312399374,1705858323611,-500.0,0.00042739,31]
[312399375,1705858323621,-1126.77,0.00042739,31]
[312399376,1705858323630,-796.98,0.00042739,31]
[312399377,1705858323640,-500.0,0.00042739,31]
[312399378,1705858323650,-527.52245609,0.00042739,31]
[312399379,1705858323659,-500.0,0.00042739,31]
[312399380,1705858323669,-788.72,0.00042739,31]
[312399381,1705858323678,-500.0,0.00042739,31]
[312399382,1705858323688,-530.34,0.00042739,31]
[312399383,1705858323698,-500.0,0.00042739,31]
[312399384,1705858323707,-500.0,0.00042739,31]
[312399385,1705858323718,-515.71647598,0.00042739,31]
[312399386,1705858323727,-500.0,0.00042739,5]
[312399387,1705858323737,-600.0,0.00042739,7]
[312399388,1705858323746,-1147.47,0.00042739,31]
[312399389,1705858323755,-500.0,0.00042739,31]
[312399390,1705858323765,-500.0,0.00042739,31]
[312399391,1705858323775,-500.0,0.00042739,31]
[312399392,1705858323785,-883.78,0.00042739,31]
[312399393,1705858323795,-500.0,0.00042739,31]
[312399394,1705858323804,-590.82,0.00042739,31]
[312399395,1705858323813,-500.0,0.00042739,31]
[312399396,1705858323823,-715.34,0.00042739,31]
[312399397,1705858323832,-1084.43,0.00042739,31]
[312399398,1705858323842,-500.0,0.00042739,31]
[312399399,1705858323851,-356.40690951,0.00042739,31]
[312399400,1705858323861,-500.0,0.00042739,31]
[312399401,1705858323870,-500.0,0.00042739,31]
[312399402,1705858323880,-500.0,0.00042739,31]
[312399403,1705858323889,-504.9,0.00042739,31]
[312399404,1705858323898,-500.0,0.00042739,31]
[312399405,1705858323908,-784.14,0.00042739,2]
[312399406,1705858323917,-720.62,0.00042739,31]
[312399407,1705858323927,-735.28,0.00042739,31]
[312399408,1705858323936,-500.0,0.00042739,31]
[312399409,1705858323945,-500.0,0.00042739,31]
[312399410,1705858323955,-500.0,0.00042739,31]
[312399411,1705858323965,-500.0,0.00042739,31]
[312399412,1705858323975,-857.01,0.00042739,31]
[312399413,1705858323985,-588.81,0.00042739,31]
[312399414,1705858323994,-609.36,0.00042739,31]
[312399415,1705858324004,-500.0,0.00042739,31]
[312399416,1705858324014,-500.0,0.00042739,31]
[312399417,1705858324024,-500.0,0.00042739,31]
[312399418,1705858324033,-500.0,0.00042739,31]
[312399419,1705858324043,-384.08157186,0.00042739,31]
[312399420,1705858324053,-698.28,0.00042739,20]
[312399421,1705858324065,-640.31,0.00042739,31]
[312399422,1705858324076,-589.47,0.00042739,31]
[312399423,1705858324086,-500.0,0.00042739,31]
[312399424,1705858324095,-892.27,0.00042739,31]
[312399425,1705858324106,-689.61,0.00042739,31]
[312399426,1705858324116,-500.0,0.00042739,31]
[312399427,1705858324126,-1059.2,0.00042739,31]
[312399428,1705858324136,-1142.77,0.00042739,31]
[312399429,1705858324147,-673.82,0.00042739,31]
[312399430,1705858324157,-500.0,0.00042739,31]
[312399431,1705858324168,-523.1,0.00042739,31]
[312399432,1705858324178,-685.54,0.00042739,31]
[312399433,1705858324188,-500.0,0.00042739,31]
[312399434,1705858324197,-626.04,0.00042739,31]
[312399435,1705858324207,-500.0,0.00042739,31]
[312399436,1705858324218,-506.50521917,0.00042739,31]
[312399437,1705858324228,-500.0,0.00042739,31]
[312399438,1705858324238,-501.23,0.00042739,31]
[312399439,1705858324248,-627.4,0.00042739,31]
[312399440,1705858324258,-937.48,0.00042739,31]
[312399441,1705858324267,-1287.05,0.00042739,31]
[312399442,1705858324277,-613.32,0.00042739,31]
[312399443,1705858324287,-500.0,0.00042739,31]
[312399444,1705858324297,-500.0,0.00042739,31]
[312399445,1705858324307,-1020.35,0.00042739,31]
[312399446,1705858324316,-1030.81,0.00042739,31]
[312399447,1705858324326,-500.0,0.00042739,31]
[312399448,1705858324336,-539.94,0.00042739,31]
[312399449,1705858324346,-944.11,0.00042739,31]
[312399450,1705858324355,-500.0,0.00042739,31]
[312399451,1705858324534,-500.0,0.00042739,31]
[312399452,1705858324559,-500.0,0.00042739,31]
[312399453,1705858324567,-616.31,0.00042739,31]
[312399454,1705858324576,-500.0,0.00042739,31]
[312399455,1705858324588,-801.3,0.00042739,31]
[312399456,1705858324597,-500.0,0.00042739,31]
[312399457,1705858324605,-500.0,0.00042739,31]
[312399458,1705858324614,-785.3,0.00042739,31]
[312399459,1705858324625,-500.0,0.00042739,31]
[312399460,1705858324633,-1514.87,0.00042739,31]
[312399461,1705858324642,-500.0,0.00042739,31]
[312399462,1705858324651,-687.19,0.00042739,31]
[312399463,1705858324660,-606.81,0.00042739,31]
[312399464,1705858324669,-510.67,0.00042739,31]
[312399465,1705858324679,-208.22035144,0.00042739,31]
[312399466,1705858324688,-604.04400657,0.00042739,31]
[312399467,1705858324697,-799.14,0.00042739,31]
[312399468,1705858324706,-598.15,0.00042739,31]
[312399469,1705858324716,-500.0,0.00042739,31]
[312399470,1705858324725,-500.0,0.00042739,31]
[312399471,1705858324735,-500.0,0.00042739,31]
[312399472,1705858324744,-500.0,0.00042739,31]
[312399473,1705858324754,-500.0,0.00042739,31]
[312399474,1705858324763,-500.0,0.00042739,31]
[312399475,1705858324772,-500.0,0.00042739,31]
[312399476,1705858324782,-500.0,0.00042739,31]
[312399477,1705858324791,-943.23,0.00042739,31]
[312399478,1705858324801,-748.3,0.00042739,31]
[312399479,1705858324810,-653.96,0.00042739,31]
[312399480,1705858324819,-717.66,0.00042739,31]
[312399481,1705858324829,-500.93,0.00042739,31]
[312399482,1705858324838,-615.42,0.00042739,31]
[312399483,1705858324848,-1085.38,0.00042739,31]
[312399484,1705858324857,-500.0,0.00042739,31]
[312399485,1705858324866,-500.0,0.00042739,31]
[312399486,1705858324876,-500.0,0.00042739,31]
[312399487,1705858324885,-500.0,0.00042739,31]
[312399488,1705858324895,-544.45,0.00042739,2]
[312399489,1705858324905,-593.75034864,0.00042739,31]
[312399490,1705858324914,-500.0,0.00042739,31]
[312399491,1705858324924,-500.0,0.00042739,31]
[312399492,1705858324933,-500.0,0.00042739,31]
[312399493,1705858324942,-182.80118895,0.00042739,31]
[312399494,1705858324952,-791.93,0.00042739,7]
[312399495,1705858324962,-500.0,0.00042739,31]
[312399496,1705858324974,-1089.26,0.00042739,31]
[312399497,1705858324984,-791.68,0.00042739,31]
[312399498,1705858324994,-597.73,0.00042739,31]
[312399499,1705858325003,-500.0,0.00042739,31]
[312399500,1705858325013,-500.0,0.00042739,31]
[312399501,1705858325023,-500.0,0.00042739,31]
[312399502,1705858325034,-500.0,0.00042739,31]
[312399503,1705858325044,-500.0,0.00042739,31]
[312399504,1705858325054,-500.0,0.00042739,31]
[312399505,1705858325064,-412.44,0.00042739,31]